bitfinex/quotes_BTCUSD_20251231
["timestamp","ask_amount","ask_price","bid_price","bid_amount"]
[1767199828195,0.4990227,87577.0,87561.0,0.48872097]
[1767199828437,0.48840763,87577.0,87561.0,0.48872097]
[1767199828781,0.48840763,87575.0,87561.0,0.48872097]
[1767199829175,0.48840763,87575.0,87560.0,0.41532073]
[1767199830517,0.0002754,87579.0,87575.0,0.000549]
[1767199830721,0.48840763,87589.0,87575.0,0.48926997]
[1767199830917,0.41532073,87600.0,87580.0,0.48872097]
[1767199830918,0.48840763,87600.0,87580.0,0.48872097]
[1767199831119,0.48840763,87605.0,87583.0,0.48872097]
[1767199831723,7e-07,87592.0,87583.0,0.48872097]
[1767199832573,7e-07,87592.0,87580.0,0.62261429]
[1767199832730,7e-07,87592.0,87580.0,1.11133526]
[1767199832927,7e-07,87592.0,87580.0,0.48872097]
[1767199833172,0.000223,87580.0,87573.0,0.48872097]
[1767199833698,0.48840763,87590.0,87573.0,0.48872097]
[1767199834382,7e-07,87592.0,87573.0,0.48872097]
[1767199835168,7e-07,87592.0,87580.0,0.62261429]
[1767199835374,7e-07,87592.0,87581.0,0.48872097]
[1767199838299,0.00018101,87606.0,87581.0,0.48872097]
[1767199838499,0.00018101,87606.0,87591.0,0.48872097]
[1767199839572,0.00053556,87606.0,87591.0,0.47972097]
[1767199841763,0.00057479,87611.0,87584.0,0.01141761]
[1767199841969,0.48840763,87637.0,87584.0,0.01141761]
[1767199841970,0.48840763,87629.0,87602.0,0.48872097]
[1767199842194,0.48840763,87629.0,87587.0,0.06153586]
[1767199842195,0.48840763,87624.0,87611.0,0.000326]
[1767199842393,0.48840763,87624.0,87606.0,0.48872097]
[1767199842770,0.48840763,87624.0,87609.0,0.62261429]
[1767199843140,0.54547093,87622.0,87606.0,0.48872097]
[1767199843344,0.48847181,87622.0,87603.0,0.01156]
[1767199843572,0.48847181,87622.0,87604.0,0.48872097]
[1767199844228,0.0001063,87622.0,87611.0,0.48872097]
[1767199845186,0.0001144,87625.0,87611.0,0.48872097]
[1767199845390,0.0001144,87625.0,87616.0,0.48872097]
[1767199845795,0.0001144,87625.0,87611.0,0.48882727]
[1767199846507,0.0001144,87625.0,87611.0,0.44982727]
[1767199847092,0.0001144,87625.0,87603.0,0.01156]
[1767199847314,0.000223,87611.0,87603.0,0.01156]
[1767199847518,0.48840763,87619.0,87603.0,0.01156]
[1767199847728,0.48862827,87625.0,87603.0,0.50028097]
[1767199848189,0.00022064,87625.0,87616.0,0.48872097]
[1767199848590,0.00022064,87625.0,87611.0,0.48872097]
[1767199849147,0.48862827,87625.0,87610.0,0.62261429]
[1767199849792,0.48862827,87625.0,87610.0,1.11133526]
[1767199850956,0.48862827,87625.0,87603.0,0.01156]
[1767199851173,0.48840763,87623.0,87603.0,0.50028097]
[1767199851677,0.00022064,87625.0,87610.0,1.10491294]
[1767199852713,0.4688497,87625.0,87604.0,0.48229865]
[1767199853491,0.48026196,87625.0,87604.0,0.48229865]
[1767199853706,0.46862906,87623.0,87604.0,0.39729865]
[1767199855339,0.46862906,87623.0,87610.0,0.62261429]
[1767199856295,0.00022064,87625.0,87623.0,0.000326]
[1767199856647,0.00022064,87625.0,87615.0,0.48229865]
[1767199856847,0.00022064,87625.0,87610.0,0.62261429]
[1767199857182,0.00022064,87625.0,87615.0,0.62261429]
[1767199857391,6.4e-07,87625.0,87616.0,0.48229865]
[1767199858043,0.0003402,87645.0,87615.0,0.62261429]
[1767199858044,0.0003402,87645.0,87624.0,0.48229865]
[1767199858240,0.0003402,87645.0,87621.0,0.01141278]
[1767199858241,0.01059124,87644.0,87630.0,1.10491294]
[1767199858446,0.0003402,87645.0,87630.0,1.10491294]
[1767199858735,0.0003402,87645.0,87631.0,0.48229865]
[1767199858917,0.46862906,87649.0,87631.0,0.48229865]
[1767199859117,0.47922032,87648.0,87631.0,0.48229865]
[1767199859324,0.01059391,87647.0,87631.0,0.48229865]
[1767199859501,0.46902906,87650.0,87631.0,0.48229865]
[1767199859724,0.46862906,87648.0,87631.0,0.48229865]
[1767199860106,0.46858633,87648.0,87638.0,0.62261429]
[1767199860465,0.0004,87650.0,87648.0,0.000106]
[1767199860840,0.0004,87650.0,87639.0,0.46540465]
[1767199861183,0.46902906,87650.0,87629.0,0.48229865]
[1767199861380,0.46902906,87650.0,87630.0,0.48229865]
[1767199861586,0.46902906,87650.0,87630.0,1.10491294]
[1767199862334,0.46902906,87650.0,87630.0,0.62261429]
[1767199862565,0.46902906,87650.0,87628.0,0.07350301]
[1767199862566,0.0004,87650.0,87640.0,0.62261429]
[1767199863130,0.0004,87656.0,87640.0,0.62261429]
[1767199863331,0.00143301,87655.0,87646.0,0.62261429]
[1767199863572,0.00050628,87656.0,87630.0,0.62261429]
[1767199863573,0.46862906,87652.0,87630.0,0.62261429]
[1767199863766,0.46862906,87652.0,87629.0,0.48229865]
[1767199863767,0.46862906,87650.0,87629.0,0.48229865]
[1767199863956,0.00055,87629.0,87628.0,0.01156]
[1767199864137,0.46862906,87640.0,87628.0,0.01156]
[1767199864138,0.4640069,87640.0,87628.0,0.01156]
[1767199864332,0.0004,87656.0,87628.0,0.01156]
[1767199864333,0.46862906,87655.0,87640.0,0.000443]
[1767199864593,0.46862906,87655.0,87635.0,0.48229865]
[1767199864752,0.46862906,87655.0,87640.0,0.62261429]
[1767199864954,0.46862906,87655.0,87629.0,0.48229865]
[1767199865153,0.46873534,87655.0,87640.0,0.62261429]
[1767199865924,0.46873534,87655.0,87640.0,1.10491294]
[1767199866152,0.00010628,87655.0,87641.0,0.48229865]
[1767199867624,0.000106,87641.0,87634.0,0.48229865]
[1767199867851,0.46862906,87651.0,87630.0,0.62261429]
[1767199867969,0.46862906,87647.0,87628.0,0.01156]
[1767199868168,0.46862906,87647.0,87627.0,0.49381865]
[1767199868412,0.46862906,87647.0,87630.0,0.62261429]
[1767199868609,0.46862906,87647.0,87627.0,0.01152]
[1767199868819,0.46862906,87647.0,87627.0,0.49381865]
[1767199869020,0.46862906,87642.0,87627.0,0.01152]
[1767199869778,0.46862906,87637.0,87614.0,0.1082505]
[1767199869983,0.46862906,87637.0,87617.0,0.01152]
[1767199870396,0.46862906,87631.0,87617.0,0.01152]
[1767199870778,0.46862906,87630.0,87617.0,0.01152]
[1767199871043,0.46862906,87628.0,87617.0,0.01152]
[1767199871603,0.48004093,87628.0,87617.0,0.01097]
[1767199871937,0.46862906,87626.0,87617.0,0.01097]
[1767199872707,0.46862906,87626.0,87614.0,0.04572]
[1767199872907,0.46862906,87626.0,87614.0,0.04582624]
[1767199873314,0.91263167,87640.0,87606.0,0.01152]
[1767199873315,0.46862906,87623.0,87606.0,0.01152]
[1767199873676,0.4687353,87623.0,87606.0,0.01152]
[1767199874899,0.4687353,87623.0,87606.0,0.49381865]
[1767199875442,0.010607,87622.0,87606.0,0.49381865]
[1767199875580,0.010607,87621.0,87606.0,0.49381865]
[1767199875759,0.010607,87620.0,87606.0,0.49381865]
[1767199875960,0.010607,87619.0,87606.0,0.40881865]
[1767199876199,0.4687353,87623.0,87606.0,0.40881865]
[1767199876200,0.010058,87618.0,87606.0,0.40881865]
[1767199876444,0.4687353,87623.0,87606.0,0.40881865]
[1767199877937,0.4687353,87623.0,87602.0,0.01152]
[1767199877938,0.00010624,87623.0,87611.0,0.48229865]
[1767199878137,2.4e-07,87623.0,87611.0,0.48229865]
[1767199879002,0.47887745,87633.0,87611.0,0.44799742]
[1767199879212,0.44457622,87633.0,87611.0,0.44810366]
[1767199879846,0.47887745,87631.0,87611.0,0.00010624]
[1767199880049,0.47887745,87629.0,87611.0,1.24e-06]
[1767199880590,0.47887745,87613.0,87611.0,1.24e-06]
[1767199882247,0.49842481,87625.0,87611.0,1.24e-06]
[1767199883227,0.49842481,87625.0,87603.0,0.48939909]
[1767199883379,0.49853105,87625.0,87603.0,0.48939909]
[1767199884620,0.49853105,87625.0,87611.0,0.48939909]
[1767199885223,0.00010624,87625.0,87611.0,0.48939909]
[1767199885723,6.385e-05,87625.0,87611.0,0.48939909]
[1767199886506,2.203e-05,87625.0,87611.0,0.48939909]
[1767199886714,0.49842481,87624.0,87604.0,0.48939909]
[1767199886917,0.49842481,87622.0,87602.0,0.01152]
[1767199887090,0.50983746,87622.0,87602.0,0.01152]
[1767199887270,0.49842481,87621.0,87602.0,0.01152]
[1767199887475,0.01141291,87620.0,87602.0,0.01152]
[1767199887827,0.49842481,87619.0,87602.0,0.01152]
[1767199888028,0.49842481,87617.0,87602.0,0.01152]
[1767199888192,0.49842481,87617.0,87602.0,0.50091909]
[1767199888776,0.49842481,87622.0,87602.0,0.50091909]
[1767199889230,0.50983746,87622.0,87602.0,0.50091909]
[1767199889531,0.49842481,87622.0,87602.0,0.50091909]
[1767199890083,2.203e-05,87625.0,87602.0,0.50091909]
[1767199890287,2.203e-05,87625.0,87602.0,0.42891909]
[1767199890747,2.203e-05,87625.0,87604.0,0.46507277]
[1767199891045,0.49840398,87627.0,87611.0,0.46507277]
[1767199891207,0.49842481,87638.0,87611.0,0.46517901]
[1767199891402,0.49842481,87636.0,87612.0,0.4650936]
[1767199891833,0.49842481,87636.0,87621.0,0.4650936]
[1767199892210,0.49838329,87636.0,87621.0,0.4650936]
[1767199892694,0.49838329,87636.0,87615.0,0.46513512]
[1767199892861,0.49842481,87632.0,87615.0,0.46513512]
[1767199894192,0.49842481,87632.0,87611.0,0.00010624]
[1767199894955,0.49842481,87632.0,87611.0,0.46524136]
[1767199897364,0.50983616,87632.0,87611.0,0.40624136]
[1767199897566,0.49842481,87632.0,87611.0,0.40624136]
[1767199898308,0.01141044,87639.0,87611.0,0.40624136]
[1767199898509,0.01141135,87632.0,87610.0,0.91263167]
[1767199898709,0.01141174,87629.0,87606.0,0.40624136]
[1767199898915,0.49842481,87628.0,87606.0,0.40624136]
[1767199899135,0.49842481,87626.0,87606.0,0.40624136]
[1767199899361,0.49842481,87626.0,87601.0,0.40628498]
[1767199902201,0.49842481,87626.0,87600.0,0.92415167]
[1767199902202,0.49842481,87621.0,87600.0,0.01152]
[1767199903557,0.50983759,87621.0,87600.0,0.01152]
[1767199903762,0.49842481,87613.0,87600.0,0.01152]
[1767199904019,0.50983864,87613.0,87600.0,0.0112688]
[1767199904214,0.49842481,87613.0,87600.0,0.0112688]
[1767199904372,0.49842481,87613.0,87591.0,0.35855378]
[1767199904556,0.49842481,87611.0,87591.0,0.37007378]
[1767199906420,0.49842481,87611.0,87591.0,0.35855378]
[1767199906618,0.49842481,87611.0,87589.0,0.01152]
[1767199906842,0.01141448,87608.0,87589.0,0.01152]
[1767199907019,0.49842481,87607.0,87589.0,0.01152]
[1767199907461,0.49842481,87605.0,87589.0,0.01152]
[1767199908567,0.49842481,87605.0,87589.0,0.01187455]
[1767199910399,0.49787581,87605.0,87590.0,0.91263167]
[1767199910600,0.49787581,87605.0,87590.0,1.27173445]
[1767199910747,0.49787581,87605.0,87590.0,0.91263167]
[1767199910943,0.49787581,87605.0,87591.0,0.35910278]
[1767199911348,0.49275902,87618.0,87591.0,0.35910278]
[1767199911548,0.48134585,87616.0,87591.0,0.30510278]
[1767199911754,0.48134585,87614.0,87591.0,0.30510278]
[1767199918084,0.48134585,87614.0,87590.0,0.91263167]
[1767199918681,0.48134585,87614.0,87590.0,0.82763167]
[1767199919506,0.48134585,87614.0,87590.0,1.13273445]
[1767199919713,0.48134585,87612.0,87590.0,0.30510278]
[1767199920723,0.48134585,87612.0,87590.0,1.21773445]
[1767199921038,0.48134585,87612.0,87590.0,1.22915127]
[1767199921237,0.48134585,87637.0,87613.0,0.3199287]
[1767199921472,0.48134585,87637.0,87618.0,0.3199287]
[1767199921671,0.3935,87656.0,87618.0,0.3199287]
[1767199921672,0.48134585,87644.0,87618.0,0.3199287]
[1767199921876,0.48134585,87644.0,87622.0,0.3199287]
[1767199922585,0.00036708,87641.0,87622.0,0.3199287]
[1767199922789,0.00036708,87641.0,87627.0,0.3199287]
[1767199923787,8e-08,87641.0,87631.0,0.3199287]
[1767199925954,8e-08,87641.0,87632.0,0.3199287]
[1767199926158,0.48003973,87650.0,87632.0,0.3199287]
[1767199926336,0.48003973,87650.0,87632.0,0.33275245]
[1767199926545,0.48003973,87650.0,87632.0,0.3213411]
[1767199926738,0.48003973,87650.0,87634.0,0.32123482]
[1767199927403,0.0004,87656.0,87640.0,0.91263167]
[1767199927404,0.48134585,87655.0,87640.0,0.91263167]
[1767199927860,0.48130251,87655.0,87640.0,1.23386649]
[1767199928065,0.0004,87673.0,87655.0,0.32146116]
[1767199928289,0.48134585,87671.0,87655.0,0.000183]
[1767199928494,0.48134585,87671.0,87643.0,0.32127816]
[1767199929299,0.49275213,87671.0,87643.0,0.32127816]
[1767199929460,0.49275226,87670.0,87643.0,0.32127816]
[1767199929701,0.01140654,87669.0,87643.0,0.32127816]
[1767199929919,0.48134585,87671.0,87651.0,0.32127816]
[1767199930159,0.0004,87673.0,87643.0,0.01140992]
[1767199930160,0.0004,87673.0,87648.0,0.32127816]
[1767199930405,0.48174585,87673.0,87656.0,0.32127816]
[1767199931057,0.000366,87656.0,87649.0,0.03897371]
[1767199931203,0.48134585,87663.0,87644.0,0.32127816]
[1767199932041,0.48134585,87663.0,87640.0,0.68380869]
[1767199932421,0.48134585,87663.0,87641.0,0.32127816]
[1767199932640,0.48134585,87672.0,87641.0,0.32127816]
[1767199932846,0.48134585,87669.0,87641.0,0.28027816]
[1767199933092,0.48134585,87667.0,87650.0,0.62147532]
[1767199933564,0.48134585,87667.0,87642.0,0.28027816]
[1767199934165,0.48134585,87667.0,87641.0,0.1373443]
[1767199934507,0.48134585,87667.0,87650.0,0.62147532]
[1767199935207,0.48134585,87667.0,87641.0,0.1373443]
[1767199935208,0.48134585,87667.0,87641.0,0.41762246]
[1767199935782,0.48134585,87663.0,87641.0,0.41762246]
[1767199935978,0.01140706,87665.0,87641.0,0.1373443]
[1767199935979,0.48134585,87659.0,87641.0,0.1373443]
[1767199936832,0.48134585,87659.0,87641.0,0.1369783]
[1767199937367,0.48134585,87659.0,87641.0,0.41725646]
[1767199937512,0.48134585,87659.0,87642.0,0.28027816]
[1767199940039,0.48134585,87659.0,87642.0,0.23927816]
[1767199940460,0.48134585,87659.0,87640.0,0.62147532]
[1767199940857,0.48134585,87659.0,87637.0,0.23927816]
[1767199941903,0.62147532,87650.0,87635.0,0.01152]
[1767199942124,0.4513002,87649.0,87635.0,0.01152]
[1767199943478,0.4513002,87649.0,87632.0,0.00010628]
[1767199943479,0.00055,87635.0,87632.0,0.00010628]
[1767199943685,0.4518502,87635.0,87632.0,0.00010628]
[1767199943901,0.4513002,87635.0,87632.0,0.00010628]
[1767199945085,0.4513002,87649.0,87632.0,0.00010628]
[1767199945302,0.4513002,87649.0,87635.0,0.000549]
[1767199945484,0.4513002,87649.0,87632.0,0.00010628]
[1767199947444,0.4513002,87649.0,87639.0,0.62147532]
[1767199947808,0.4513002,87660.0,87639.0,0.62147532]
[1767199948327,0.46187723,87659.0,87637.0,0.23927816]
[1767199948504,0.4513002,87655.0,87632.0,0.23938444]
[1767199949345,0.4513002,87655.0,87632.0,0.00010628]
[1767199949548,0.4513002,87655.0,87632.0,0.23938444]
[1767199950573,0.4513002,87653.0,87632.0,0.23938444]
[1767199951379,0.4513002,87651.0,87632.0,0.23938444]
[1767199952050,0.01140823,87656.0,87632.0,0.23938444]
[1767199952051,0.4513002,87649.0,87632.0,0.23938444]
[1767199952667,0.49871188,87649.0,87632.0,0.00010628]
[1767199952877,0.4513002,87647.0,87632.0,2.8e-07]
[1767199953376,0.4513002,87645.0,87632.0,2.8e-07]
[1767199954111,0.4513002,87645.0,87626.0,0.08697858]
[1767199954327,0.45140644,87645.0,87626.0,0.08697858]
[1767199954753,0.62147532,87640.0,87621.0,0.04091951]
[1767199954955,0.000444,87626.0,87620.0,0.01152]
[1767199955318,0.4513002,87630.0,87620.0,0.01152]
[1767199958879,0.04524688,87645.0,87620.0,0.63299532]
[1767199959091,0.46190768,87644.0,87620.0,0.63299532]
[1767199959315,0.4513002,87642.0,87620.0,0.63299532]
[1767199959540,0.4513002,87640.0,87620.0,0.01152]
[1767199959750,0.4513002,87638.0,87620.0,0.01152]
[1767199960377,0.4513002,87636.0,87620.0,0.01152]
[1767199961271,0.01943641,87635.0,87612.0,0.19197316]
[1767199961481,0.4513002,87634.0,87612.0,0.19197316]
[1767199963003,0.4513002,87634.0,87612.0,0.01152]
[1767199966654,0.0114107,87637.0,87612.0,0.01152]
[1767199966655,0.4513002,87629.0,87612.0,0.01152]
[1767199967748,0.82968772,87622.0,87612.0,0.01152]
[1767199968151,1.28098792,87622.0,87612.0,0.01152]
[1767199968399,1.28098792,87622.0,87611.0,0.03024]
[1767199970069,0.4513002,87621.0,87609.0,0.0003242]
[1767199970296,0.4513002,87618.0,87609.0,2e-07]
[1767199976935,0.41484386,87619.0,87609.0,2e-07]
[1767199977136,0.41484386,87620.0,87619.0,0.000324]
[1767199977373,0.0001062,87620.0,87619.0,0.000324]
[1767199977554,0.0001062,87620.0,87609.0,2e-07]
[1767199977756,0.41495006,87620.0,87609.0,2e-07]
[1767199978138,0.0001062,87620.0,87609.0,2e-07]
[1767199978336,0.47258229,87636.0,87620.0,0.0002178]
[1767199978541,0.06846473,87638.0,87620.0,0.0002178]
[1767199978542,0.47258229,87629.0,87620.0,0.0002178]
[1767199978781,0.47258229,87629.0,87609.0,2e-07]
[1767199978978,0.47258229,87629.0,87609.0,0.0001064]
[1767199979193,0.41484386,87620.0,87609.0,0.0001064]
[1767199979604,0.47258229,87619.0,87609.0,0.0001064]
[1767199980572,0.01141317,87618.0,87609.0,0.0001064]
[1767199980790,0.47258229,87613.0,87604.0,0.00667802]
[1767199981007,0.47258229,87613.0,87595.0,0.04091951]
[1767199981212,0.41484386,87605.0,87594.0,0.04091951]
[1767199981368,0.00010624,87605.0,87595.0,0.04091951]
[1767199981589,0.00010624,87605.0,87594.0,0.04091951]
[1767199981590,0.88753239,87605.0,87594.0,0.04091951]
[1767199981817,0.41484386,87604.0,87593.0,0.04091951]
[1767199982016,0.47268853,87605.0,87593.0,0.04091951]
[1767199982617,0.47268853,87605.0,87594.0,0.04091951]
[1767199982933,0.47213953,87605.0,87594.0,0.04091951]
[1767199983274,0.22823661,87629.0,87590.0,0.00055374]
[1767199983275,0.47258229,87619.0,87596.0,0.18724294]
[1767199983492,0.47258229,87634.0,87601.0,0.18724294]
[1767199983698,0.47258229,87629.0,87601.0,0.18724294]
[1767199983902,0.47258229,87627.0,87610.0,0.62252472]
[1767199984120,0.47258229,87645.0,87611.0,0.19865703]
[1767199984401,0.47258229,87643.0,87612.0,0.1986569]
[1767199984582,0.47258229,87641.0,87612.0,0.18724294]
[1767199984784,0.48321144,87640.0,87621.0,0.18724294]
[1767199984964,0.47258229,87640.0,87621.0,0.18724294]
[1767199985358,0.47258229,87638.0,87621.0,0.18724294]
[1767199987766,0.47258229,87638.0,87615.0,0.18724294]
[1767199987968,0.47258229,87629.0,87612.0,0.22816245]
[1767199988149,0.47258229,87636.0,87613.0,0.04091951]
[1767199988334,0.47258229,87636.0,87614.0,0.22816245]
[1767199988550,0.47258229,87636.0,87615.0,0.22816245]
[1767199988753,0.04077893,87635.0,87620.0,0.80976766]
[1767199988968,0.47258229,87636.0,87620.0,0.80976766]
[1767199989489,0.47258229,87636.0,87621.0,0.18724294]
[1767199991046,0.47258229,87636.0,87614.0,0.04091951]
[1767199991247,0.47258229,87636.0,87613.0,0.04091951]
[1767199991454,0.47258229,87629.0,87613.0,0.04091951]
[1767199991656,0.47258229,87627.0,87611.0,0.05243951]
[1767199991854,0.47258229,87627.0,87611.0,0.01152]
[1767199995231,0.47258229,87627.0,87608.0,0.04091951]
[1767199995232,0.91255869,87621.0,87608.0,0.04091951]
[1767199995432,0.47258229,87610.0,87600.0,0.0002064]
[1767199995868,0.47258229,87629.0,87600.0,0.0002064]
[1767199996067,0.47258229,87627.0,87600.0,0.0002064]
[1767199996185,0.47258229,87625.0,87600.0,0.0002064]
[1767199996390,0.47258229,87625.0,87601.0,0.23968245]
[1767199996590,0.47258229,87625.0,87601.0,0.25109784]
[1767199996791,0.47258229,87625.0,87601.0,0.23209784]
[1767199997022,0.47258229,87625.0,87601.0,0.22068245]
[1767199997224,0.47258229,87623.0,87601.0,0.22068245]
[1767199997816,0.46258229,87623.0,87600.0,0.0002064]
[1767199998037,0.46258229,87623.0,87600.0,0.23088885]
[1767199998415,0.46258229,87623.0,87600.0,1.14344754]
[1767199998837,0.46258229,87623.0,87600.0,0.0002064]
[1767200001302,0.46258229,87623.0,87601.0,0.23068245]
[1767200003481,0.46258229,87623.0,87600.0,0.91276509]
[1767200003482,0.46258229,87623.0,87600.0,0.0002064]
[1767200003703,0.47687112,87619.0,87600.0,0.0002064]
[1767200004823,0.47687112,87616.0,87600.0,0.0002064]
[1767200004966,0.47687112,87614.0,87600.0,0.0002064]
[1767200005367,0.47687112,87599.0,87590.0,0.00055374]
[1767200005574,0.47722539,87599.0,87590.0,0.00055374]
[1767200006012,0.00035427,87599.0,87590.0,0.00055374]
[1767200008933,0.00035427,87599.0,87580.0,0.91255869]
[1767200009108,0.00035427,87599.0,87585.0,0.21754964]
[1767200011002,0.91255869,87620.0,87597.0,0.91255869]
[1767200011003,0.47687112,87620.0,87597.0,0.91255869]
[1767200011208,0.01789897,87634.0,87597.0,0.91255869]
[1767200011209,0.47687112,87625.0,87603.0,0.21719537]
[1767200011387,0.47687112,87625.0,87605.0,0.21719537]
[1767200012175,0.47687112,87625.0,87610.0,0.91255869]
[1767200012372,0.47687112,87630.0,87611.0,0.21719537]
[1767200012782,0.47687112,87630.0,87612.0,0.21719537]
[1767200013196,0.47687112,87630.0,87612.0,0.28567875]
[1767200013513,0.47687112,87630.0,87614.0,0.21719537]
[1767200014474,0.47696818,87630.0,87614.0,0.21719537]
[1767200014889,0.47696818,87630.0,87612.0,0.01141396]
[1767200015105,0.47696818,87630.0,87613.0,0.21719537]
[1767200015302,0.47696818,87630.0,87614.0,0.0114137]
[1767200015503,0.47696818,87630.0,87615.0,0.21719537]
[1767200016173,0.47710362,87635.0,87620.0,0.91255869]
[1767200016359,0.47710362,87635.0,87620.0,0.91265575]
[1767200016516,0.0002325,87635.0,87621.0,0.21719537]
[1767200017829,0.0002325,87635.0,87622.0,0.22860802]
[1767200018162,0.0002325,87635.0,87622.0,0.21719537]
[1767200019178,0.0002325,87635.0,87622.0,0.22860802]
[1767200019414,0.0002325,87649.0,87626.0,0.21883783]
[1767200019596,0.47710362,87649.0,87631.0,0.21883783]
[1767200021127,0.47699322,87649.0,87631.0,0.21883783]
[1767200022044,0.47699322,87649.0,87633.0,0.21883783]
[1767200024143,0.47699322,87649.0,87630.0,0.91255869]
[1767200024345,0.47699322,87649.0,87631.0,0.21883783]
[1767200025217,0.47699322,87649.0,87631.0,0.23024931]
[1767200026018,0.47699322,87649.0,87631.0,0.2873067]
[1767200026219,0.47699322,87649.0,87631.0,0.23024931]
[1767200026417,0.47699322,87649.0,87632.0,0.01141135]
[1767200027051,0.47699322,87649.0,87631.0,0.23024931]
[1767200027401,0.47699322,87649.0,87631.0,0.21883783]
[1767200027739,0.47699322,87649.0,87625.0,0.23035783]
[1767200028255,0.47699322,87649.0,87630.0,1.13139652]
[1767200028452,0.47699322,87649.0,87631.0,0.21883783]
[1767200030083,0.47699322,87649.0,87631.0,0.17583783]
[1767200031522,0.0002882,87660.0,87633.0,0.01141122]
[1767200031697,0.0002882,87660.0,87650.0,0.91255869]
[1767200031698,0.49837414,87659.0,87650.0,0.91255869]
[1767200031900,0.49837414,87659.0,87640.0,1.08839652]
[1767200031901,0.000549,87650.0,87640.0,1.08839652]
[1767200032101,0.49837414,87659.0,87640.0,1.08839652]
[1767200032331,0.49837414,87659.0,87640.0,0.17583783]
[1767200033036,0.49848041,87659.0,87640.0,0.17583783]
[1767200033489,0.52927843,87659.0,87632.0,0.17583783]
[1767200033857,0.52927843,87659.0,87631.0,0.00870674]
[1767200034006,0.52927843,87659.0,87626.0,0.17583783]
[1767200034210,0.52927843,87659.0,87640.0,0.01]
[1767200034464,0.49848041,87659.0,87640.0,0.01]
[1767200035842,0.50988825,87659.0,87640.0,0.01]
[1767200036031,0.49848041,87659.0,87640.0,0.01]
[1767200036225,0.50988825,87659.0,87640.0,0.01]
[1767200036426,0.49837414,87656.0,87640.0,0.01]
[1767200036847,0.49837414,87654.0,87640.0,0.01]
[1767200037050,0.49837414,87654.0,87640.0,0.00945]
[1767200038650,0.49837414,87654.0,87640.0,0.92200869]
[1767200039361,0.49837414,87654.0,87640.0,0.00945]
[1767200039567,0.00010627,87659.0,87654.0,0.000549]
[1767200039978,0.00010627,87659.0,87649.0,0.91255869]
[1767200040191,0.00010627,87659.0,87647.0,0.17583783]
[1767200040453,0.0002882,87660.0,87659.0,0.000106]
[1767200040653,0.49837414,87660.0,87640.0,0.00945]
[1767200040852,0.49837414,87659.0,87640.0,0.00955627]
[1767200041703,0.49837414,87659.0,87640.0,0.01692657]
[1767200042464,0.49837414,87659.0,87640.0,0.92948526]
[1767200042888,0.49837414,87659.0,87641.0,0.17583783]
[1767200043115,0.49837414,87672.0,87659.0,0.000443]
[1767200043261,0.49837414,87670.0,87649.0,0.91255869]
[1767200043467,0.50899836,87669.0,87650.0,0.17583783]
[1767200043699,0.01062422,87668.0,87650.0,0.17583783]
[1767200043964,0.01169369,87677.0,87640.0,0.07801754]
[1767200043965,0.49877414,87673.0,87659.0,0.91255869]
[1767200044147,0.49837414,87672.0,87668.0,0.000443]
[1767200044563,0.49837414,87672.0,87655.0,0.17583783]
[1767200044829,0.49837414,87672.0,87655.0,0.20366242]
[1767200045396,0.49837414,87672.0,87660.0,0.41432386]
[1767200045699,0.49837414,87672.0,87655.0,0.20366242]
[1767200045851,0.49837414,87672.0,87660.0,0.41432386]
[1767200046042,0.49837414,87672.0,87660.0,0.38432386]
[1767200046247,0.49837414,87672.0,87660.0,0.41432386]
[1767200046664,0.49837414,87672.0,87660.0,0.44452198]
[1767200048294,0.49837414,87672.0,87660.0,0.41432386]
[1767200049362,0.49837414,87672.0,87649.0,0.01152]
[1767200049363,0.49837414,87659.0,87649.0,0.01152]
[1767200049565,0.49837414,87659.0,87640.0,0.42377386]
[1767200049761,0.49848035,87659.0,87640.0,0.07179876]
[1767200050018,0.49848035,87659.0,87649.0,0.41432386]
[1767200050019,0.00010621,87659.0,87649.0,0.41432386]
[1767200050218,0.00010621,87659.0,87650.0,0.1874641]
[1767200050424,0.00010621,87659.0,87649.0,0.41432386]
[1767200050586,0.49837414,87658.0,87640.0,0.07179876]
[1767200050771,0.000106,87649.0,87640.0,0.00945]
[1767200051208,0.49837414,87653.0,87640.0,0.00945]
[1767200051831,0.00010621,87659.0,87640.0,0.00945]
[1767200051832,0.49837414,87658.0,87640.0,0.009344]
[1767200052214,0.49837414,87658.0,87626.0,0.22841171]
[1767200052425,0.49837414,87658.0,87627.0,0.06168007]
[1767200052619,0.0114094,87647.0,87624.0,0.04094761]
[1767200052861,0.0114094,87647.0,87616.0,0.0002882]
[1767200052862,0.49837414,87639.0,87617.0,0.04094761]
[1767200053067,0.49837414,87639.0,87616.0,0.0002882]
[1767200053221,0.49837414,87639.0,87621.0,0.23909531]
[1767200053559,0.49837414,87645.0,87629.0,0.62191227]
[1767200053760,0.49837414,87645.0,87625.0,0.23909531]
[1767200053925,0.49837414,87645.0,87625.0,0.20109531]
[1767200054726,0.49837414,87645.0,87629.0,0.01]
[1767200055596,0.54821155,87645.0,87629.0,0.01]
[1767200056468,0.49837414,87644.0,87629.0,0.01]
[1767200057458,0.06124707,87645.0,87616.0,0.0002882]
[1767200057459,0.49837414,87639.0,87616.0,0.0002882]
[1767200057674,0.50978458,87639.0,87616.0,0.0002882]
[1767200057875,0.49837414,87639.0,87616.0,0.0002882]
[1767200058080,0.49837414,87637.0,87616.0,0.0002882]
[1767200059510,0.49762955,87637.0,87616.0,0.0002882]
[1767200060514,0.49762955,87637.0,87616.0,0.2121281]
[1767200060714,0.49708055,87637.0,87617.0,0.2118399]
[1767200060902,0.49708055,87637.0,87617.0,0.2028399]
[1767200061102,0.49708055,87637.0,87620.0,0.62191227]
[1767200061291,0.49708055,87637.0,87620.0,0.82530117]
[1767200061490,0.49708055,87637.0,87616.0,0.2036771]
[1767200062490,0.49708055,87637.0,87617.0,0.01]
[1767200063534,0.49617595,87637.0,87617.0,0.01]
[1767200063940,0.55149845,87637.0,87617.0,0.01]
[1767200065338,0.49617595,87637.0,87617.0,0.01]
[1767200068145,0.49617595,87637.0,87615.0,0.1875817]
[1767200070567,0.49617595,87637.0,87620.0,0.41472659]
[1767200072446,0.49617595,87637.0,87620.0,0.42472659]
[1767200073304,0.49617595,87637.0,87627.0,0.41472659]
[1767200074275,0.46427528,87644.0,87627.0,0.41472659]
[1767200074482,0.46427528,87644.0,87626.0,0.1875817]
[1767200074716,0.46427528,87644.0,87630.0,0.41472659]
[1767200075136,0.46427528,87644.0,87630.0,0.35672659]
[1767200077181,0.41472659,87650.0,87630.0,0.35672659]
[1767200077182,0.46427528,87650.0,87631.0,0.1875817]
[1767200077385,0.46427528,87649.0,87631.0,0.1875817]
[1767200077930,0.46427528,87649.0,87630.0,0.41472659]
[1767200078335,0.46427528,87649.0,87639.0,0.41472659]
[1767200079783,0.000549,87639.0,87630.0,0.41472659]
[1767200080074,0.46427528,87644.0,87630.0,0.41472659]
[1767200080272,0.04642753,87643.0,87630.0,0.41472659]
[1767200081113,0.51070281,87643.0,87630.0,0.41472659]